[Event "NOR-ch Various 2019"]
[Site "Larvik"]
[Date "2019.07.13"]
[Round "9.29"]
[White "Esbensen, Arnt"]
[Black "Hagesather, Ellen"]
[Result "1-0"]
[ECO "A90"]
[WhiteElo "2153"]
[BlackElo "2193"]
[Annotator "NA"]
[PlyCount "139"]
[EventDate "2019.07.06"]
[EventType "swiss"]
[EventCountry "NOR"]
[SourceTitle "playchess.com"]
[Source "ChessBase"]
[SourceQuality "1"]
[TimeControl "40/5400+30:1800+30"]

1. d4 {[%emt 0:00:00]} d5 {[%emt 0:00:00]} 2. c4 {[%emt 0:00:00]} e6 {[%emt 0:00:00]} 3. Nf3 {[%emt 0:00:18]} f5 {[%emt 0:00:20]} 4. g3 {[%emt 0:00:26]} Nf6 {[%emt 0:03:14]} 5. Bg2 {[%emt 0:00:19]} Bd6 {[%emt 0:02:08]} 6. Nc3 {[%emt 0:00:33]} c6 {[%emt 0:00:11]} 7. O-O {[%emt 0:00:48]} O-O {[%emt 0:00:07]} 8. Qc2 {[%emt 0:00:27]} b6 {[%emt 0:01:18]} 9. Be3 {[%emt 0:10:47]} dxc4 {[%emt 0:08:20]} 10. Nd2 {[%emt 0:03:17]} Ba6 {[%emt 0:01:25]} 11. Nd1 {[%emt 0:09:40]} b5 {[%emt 0:04:00]} 12. b3 {[%emt 0:10:46]} cxb3 {[%emt 0:01:20]} 13. Nxb3 {[%emt 0:01:31]} Nd5 {[%emt 0:02:32]} 14. Nb2 {[%emt 0:00:44]} Bb7 {[%emt 0:05:37]} 15. Nc5 {[%emt 0:02:45]} Bxc5 {[%emt 0:00:23]} 16. Qxc5 {[%emt 0:00:42]} Na6 {[%emt 0:02:21]} 17. Qc1 {[%emt 0:00:26]} Nxe3 {[%emt 0:06:31]} 18. Qxe3 {[%emt 0:03:46]} Qd6 {[%emt 0:00:12]} 19. Nd3 {[%emt 0:01:35]} Rfe8 {[%emt 0:00:57]} 20. Rfd1 {[%emt 0:05:42]} Nb4 {[%emt 0:07:08]} 21. Nc5 {[%emt 0:01:26]} Bc8 {[%emt 0:02:25]} 22. Qb3 {[%emt 0:04:16]} Nd5 {[%emt 0:05:58]} 23. Rac1 {[%emt 0:00:21]} a5 {[%emt 0:02:40]} 24. a3 {[%emt 0:03:52]} Rb8 {[%emt 0:06:51]} 25. Rd3 {[%emt 0:06:51]} a4 {[%emt 0:04:45]} 26. Qa2 {[%emt 0:06:52]} Re7 {[%emt 0:04:56]} 27. Qd2 {[%emt 0:05:35]} Ra7 {[%emt 0:06:49]} 28. Qc2 {[%emt 0:05:18]} Rb6 {[%emt 0:04:37]} 29. Qd2 {[%emt 0:03:23]} h6 {[%emt 0:02:56]} 30. e3 {[%emt 0:01:22]} Bd7 {[%emt 0:04:11]} 31. Qd1 {[%emt 0:04:19]} Be8 {[%emt 0:00:46]} 32. Bxd5 {[%emt 0:00:29]} exd5 {[%emt 0:02:39]} 33. Rdc3 {[%emt 0:00:26]} g5 {[%emt 0:05:03]} 34. Nd3 {[%emt 0:00:23]} Rg7 {[%emt 0:00:30]} 35. Ne5 {[%emt 0:01:03]} f4 {[%emt 0:01:14]} 36. Qg4 {[%emt 0:01:11]} h5 {[%emt 0:01:55]} 37. Qf5 {[%emt 0:00:20]} Bd7 {[%emt 0:01:26]} 38. Nxd7 {[%emt 0:04:57]} Qxd7 {[%emt 0:00:08]} 39. Qf6 {[%emt 0:00:42]} Qe7 {[%emt 0:00:54]} 40. Qf5 {[%emt 0:00:50]} Qd7 {[%emt 0:00:35]} 41. Qf6 {[%emt 0:08:51]} Qe7 {[%emt 0:00:48]} 42. Qh6 {[%emt 0:00:53]} Rh7 {[%emt 0:01:22]} 43. Qg6+ {[%emt 0:00:30]} Rg7 {[%emt 0:01:06]} 44. Qxh5 {[%emt 0:00:28]} Qe6 {[%emt 0:00:51]} 45. exf4 {[%emt 0:03:09]} gxf4 {[%emt 0:01:39]} 46. Qh4 {[%emt 0:00:16]} fxg3 {[%emt 0:04:47]} 47. hxg3 {[%emt 0:00:24]} Qd7 {[%emt 0:02:57]} 48. Re1 {[%emt 0:05:04]} Rb8 {[%emt 0:02:41]} 49. Rce3 {[%emt 0:01:04]} Rf8 {[%emt 0:00:48]} 50. Re6 {[%emt 0:03:16]} Qf7 {[%emt 0:01:10]} 51. R1e2 {[%emt 0:03:07]} Qf3 {[%emt 0:02:04]} 52. R6e3 {[%emt 0:01:50]} Qf5 {[%emt 0:01:08]} 53. Re8 {[%emt 0:01:11]} Rgf7 {[%emt 0:06:09]} 54. R8e5 {[%emt 0:00:53]} Qb1+ {[%emt 0:01:33]} 55. Kg2 {[%emt 0:00:41]} Rh7 {[%emt 0:01:11]} 56. Qg4+ {[%emt 0:01:13]} Kh8 {[%emt 0:00:47]} 57. Re1 {[%emt 0:00:42]} Qc2 {[%emt 0:00:24]} 58. R1e2 {[%emt 0:01:40]} Qb1 {[%emt 0:00:55]} 59. Rh5 {[%emt 0:00:21]} Rg8 {[%emt 0:00:37]} 60. Qh4 {[%emt 0:01:38]} Rxh5 {[%emt 0:03:47]} 61. Qxh5+ {[%emt 0:00:06]} Qh7 {[%emt 0:00:05]} 62. Qe5+ {[%emt 0:00:26]} Qg7 {[%emt 0:00:07]} 63. Qd6 {[%emt 0:00:31]} Rf8 {[%emt 0:02:00]} 64. Re6 {[%emt 0:01:16]} Kh7 {[%emt 0:00:53]} 65. Qxc6 {[%emt 0:00:59]} Qf7 {[%emt 0:00:46]} 66. Qc2+ {[%emt 0:00:30]} Kg7 {[%emt 0:00:03]} 67. Qe2 {[%emt 0:00:08]} Qf5 {[%emt 0:00:23]} 68. Re5 {[%emt 0:00:25]} Qf6 {[%emt 0:00:29]} 69. Qg4+ {[%emt 0:00:18]} Kf7 {[%emt 0:00:16]} 70. Rf5 {[%emt 0:00:07]} 1-0

[Event "NOR-ch Various 2019"]
[Site "Larvik"]
[Date "2019.07.13"]
[Round "9.30"]
[White "Kristiansen, Willy M"]
[Black "Andersen, Lars Even"]
[Result "1/2-1/2"]
[ECO "E04"]
[WhiteElo "2118"]
[BlackElo "2314"]
[Annotator "ChessBase"]
[PlyCount "111"]
[EventDate "2019.07.06"]
[EventType "swiss"]
[EventCountry "NOR"]
[SourceTitle "playchess.com"]
[Source "ChessBase"]
[SourceQuality "1"]
[TimeControl "40/5400+30:1800+30"]

1. d4 {[%emt 0:00:00]} Nf6 {[%emt 0:45:13]} 2. c4 {[%emt 0:00:00]} e6 {[%emt 0:00:04]} 3. g3 {[%emt 0:00:11]} d5 {[%emt 0:00:51]} 4. Nf3 {[%emt 0:00:17]} dxc4 {[%emt 0:00:56]} 5. Bg2 {[%emt 0:00:27]} Bb4+ {[%emt 0:00:39]} 6. Bd2 {[%emt 0:00:24]} c5 {[%emt 0:00:44]} 7. Bxb4 {[%emt 0:03:05]} cxb4 {[%emt 0:00:05]} 8. O-O {[%emt 0:00:08]} Nc6 {[%emt 0:00:55]} 9. a3 {[%emt 0:01:24]} O-O {[%emt 0:08:40]} 10. axb4 {[%emt 0:01:23]} Nxb4 {[%emt 0:01:31]} 11. Na3 {[%emt 0:00:57]} Bd7 {[%emt 0:01:31]} 12. Ne5 {[%emt 0:02:21]} Bc6 {[%emt 0:01:21]} 13. Nxc6 {[%emt 0:00:50]} Nxc6 {[%emt 0:00:05]} 14. e3 {[%emt 0:06:01]} Na5 {[%emt 0:02:38]} 15. Qa4 {[%emt 0:13:58]} Rc8 {[%emt 0:01:05]} 16. Rac1 {[%emt 0:11:42]} a6 {[%emt 0:01:27]} 17. b4 {[%emt 0:05:56]} Nb3 {[%emt 0:07:08]} 18. Rxc4 {[%emt 0:09:31]} b5 {[%emt 0:05:00]} 19. Rxc8 {[%emt 0:00:11]} bxa4 {[%emt 0:00:18]} 20. Rxd8 {[%emt 0:00:15]} Rxd8 {[%emt 0:00:00]} 21. Bc6 {[%emt 0:03:34]} Rb8 {[%emt 0:00:41]} 22. Bxa4 {[%emt 0:01:22]} Rxb4 {[%emt 0:00:32]} 23. Bxb3 {[%emt 0:01:46]} Rxb3 {[%emt 0:00:07]} 24. Rc1 {[%emt 0:04:36]} g5 {[%emt 0:04:11]} 25. Nc4 {[%emt 0:00:52]} g4 {[%emt 0:04:44]} 26. Kg2 {[%emt 0:01:04]} Ne4 {[%emt 0:01:08]} 27. f3 {[%emt 0:02:26]} gxf3+ {[%emt 0:02:02]} 28. Kxf3 {[%emt 0:00:09]} Rc3 {[%emt 0:00:40]} 29. Rxc3 {[%emt 0:01:32]} Nxc3 {[%emt 0:00:07]} 30. e4 {[%emt 0:00:44]} Kg7 {[%emt 0:02:32]} 31. Ke3 {[%emt 0:01:08]} f5 {[%emt 0:02:07]} 32. exf5 {[%emt 0:05:03]} exf5 {[%emt 0:00:08]} 33. Kf4 {[%emt 0:03:21]} Kf6 {[%emt 0:01:03]} 34. g4 {[%emt 0:04:17]} Nd5+ {[%emt 0:02:11]} 35. Kf3 {[%emt 0:00:19]} Kg5 {[%emt 0:02:19]} 36. gxf5 {[%emt 0:02:52]} Kxf5 {[%emt 0:00:06]} 37. h3 {[%emt 0:01:59]} Nc3 {[%emt 0:01:04]} 38. Na5 {[%emt 0:02:40]} Kg5 {[%emt 0:00:59]} 39. Nc4 {[%emt 0:06:42]} Kh4 {[%emt 0:01:18]} 40. Nb6 {[%emt 0:00:59]} Kxh3 {[%emt 0:01:16]} 41. d5 {[%emt 0:30:11]} Nb5 {[%emt 0:20:04]} 42. Nc4 {[%emt 0:00:00]} h5 {[%emt 0:01:20]} 43. d6 {[%emt 0:00:00]} Nd4+ {[%emt 0:03:35]} 44. Ke4 {[%emt 0:00:00]} Ne6 {[%emt 0:01:07]} 45. Kf3 {[%emt 0:00:00]} Nc5 {[%emt 0:00:45]} 46. Nb6 {[%emt 0:00:00]} Ne6 {[%emt 0:01:31]} 47. d7 {[%emt 0:00:00]} Kh4 {[%emt 0:00:39]} 48. Nd5 {[%emt 0:00:00]} a5 {[%emt 0:01:22]} 49. Nf4 {[%emt 0:00:00]} Nd8 {[%emt 0:00:21]} 50. Ke4 {[%emt 0:00:00]} Kg4 {[%emt 0:01:05]} 51. Nxh5 {[%emt 0:00:00]} Kxh5 {[%emt 0:02:20]} 52. Kd4 {[%emt 0:00:00]} Kg6 {[%emt 0:00:07]} 53. Kc4 {[%emt 0:00:00]} Kf7 {[%emt 0:00:14]} 54. Kb5 {[%emt 0:00:00]} Nb7 {[%emt 0:00:17]} 55. d8=Q {[%emt 0:00:00]} Nxd8 {[%emt 0:00:07]} 56. Kxa5 {[%emt 0:00:39]} 1/2-1/2

[Event "NOR-ch Various 2019"]
[Site "Larvik"]
[Date "2019.07.13"]
[Round "9.31"]
[White "Martinsen, Stig K"]
[Black "Aulin-Jansson, Joran"]
[Result "0-1"]
[ECO "A25"]
[WhiteElo "2177"]
[BlackElo "2223"]
[Annotator "ChessBase"]
[PlyCount "80"]
[EventDate "2019.07.06"]
[EventType "swiss"]
[EventCountry "NOR"]
[SourceTitle "playchess.com"]
[Source "ChessBase"]
[SourceQuality "1"]
[TimeControl "40/5400+30:1800+30"]

1. c4 {[%emt 0:12:15]} e5 {[%emt 0:01:11]} 2. Nc3 {[%emt 0:00:15]} Nc6 {[%emt 0:00:06]} 3. Nf3 {[%emt 0:00:20]} g6 {[%emt 0:00:06]} 4. e3 {[%emt 0:00:22]} Bg7 {[%emt 0:00:06]} 5. d4 {[%emt 0:00:21]} d6 {[%emt 0:00:06]} 6. Be2 {[%emt 0:00:11]} Nh6 {[%emt 0:04:33]} 7. d5 {[%emt 0:09:50]} Ne7 {[%emt 0:00:15]} 8. Rb1 {[%emt 0:05:07]} a5 {[%emt 0:06:24]} 9. a3 {[%emt 0:02:47]} f5 {[%emt 0:00:48]} 10. h4 {[%emt 0:10:36]} O-O {[%emt 0:06:11]} 11. h5 {[%emt 0:03:23]} Nf7 {[%emt 0:00:22]} 12. hxg6 {[%emt 0:01:49]} hxg6 {[%emt 0:07:27]} 13. e4 {[%emt 0:07:33]} Bf6 {[%emt 0:05:29]} 14. Bd3 {[%emt 0:11:07]} Kg7 {[%emt 0:01:47]} 15. Ke2 {[%emt 0:08:45]} Rh8 {[%emt 0:02:00]} 16. Rxh8 {[%emt 0:01:27]} Qxh8 {[%emt 0:00:12]} 17. Bd2 {[%emt 0:01:28]} Qh5 {[%emt 0:01:42]} 18. Qh1 {[%emt 0:08:41]} Qg4 {[%emt 0:02:17]} 19. Re1 {[%emt 0:06:58]} Bd7 {[%emt 0:04:21]} 20. Kd1 {[%emt 0:00:43]} Rh8 {[%emt 0:00:06]} 21. Qg1 {[%emt 0:01:11]} Qh5 {[%emt 0:02:02]} 22. Be2 {[%emt 0:01:29]} Qh7 {[%emt 0:01:18]} 23. Bd3 {[%emt 0:01:59]} f4 {[%emt 0:00:57]} 24. Kc2 {[%emt 0:01:46]} g5 {[%emt 0:04:20]} 25. Bc1 {[%emt 0:00:38]} c6 {[%emt 0:00:45]} 26. Kb1 {[%emt 0:00:29]} c5 {[%emt 0:03:35]} 27. Nd2 {[%emt 0:00:50]} g4 {[%emt 0:00:33]} 28. Bc2 {[%emt 0:00:46]} Ng6 {[%emt 0:01:50]} 29. Ba4 {[%emt 0:00:31]} Bxa4 {[%emt 0:03:11]} 30. Nxa4 {[%emt 0:00:02]} Qh2 {[%emt 0:00:10]} 31. Nc3 {[%emt 0:00:40]} Ng5 {[%emt 0:01:48]} 32. Kc2 {[%emt 0:00:59]} Kf7 {[%emt 0:00:22]} 33. Kb1 {[%emt 0:00:34]} g3 {[%emt 0:00:58]} 34. fxg3 {[%emt 0:00:30]} Qxg3 {[%emt 0:00:07]} 35. Qf1 {[%emt 0:00:34]} Rh2 {[%emt 0:00:21]} 36. Re2 {[%emt 0:00:27]} Nh4 {[%emt 0:00:06]} 37. Nb3 {[%emt 0:00:35]} Qd3+ {[%emt 0:00:34]} 38. Ka1 {[%emt 0:00:20]} Rxg2 {[%emt 0:00:07]} 39. Nxa5 {[%emt 0:00:37]} Nxe4 {[%emt 0:02:00]} 40. Nxe4 {[%emt 0:00:32]} Qxe2 {[%emt 0:00:07]} 0-1

[Event "NOR-ch Various 2019"]
[Site "Larvik"]
[Date "2019.07.13"]
[Round "9.32"]
[White "Brodtkorb, Lars Johan"]
[Black "Shehzad, Shazil"]
[Result "1-0"]
[ECO "A58"]
[WhiteElo "2077"]
[BlackElo "2088"]
[Annotator "NA"]
[PlyCount "49"]
[EventDate "2019.07.06"]
[EventType "swiss"]
[EventCountry "NOR"]
[SourceTitle "playchess.com"]
[Source "ChessBase"]
[SourceQuality "1"]
[TimeControl "40/5400+30:1800+30"]

1. d4 {[%emt 0:00:00]} Nf6 {[%emt 0:00:00]} 2. c4 {[%emt 0:00:00]} c5 {[%emt 0:00:08]} 3. d5 {[%emt 0:00:00]} b5 {[%emt 0:00:08]} 4. cxb5 {[%emt 0:00:01]} a6 {[%emt 0:00:05]} 5. bxa6 {[%emt 0:00:10]} g6 {[%emt 0:00:08]} 6. Nc3 {[%emt 0:00:11]} Bg7 {[%emt 0:00:12]} 7. e4 {[%emt 0:00:16]} O-O {[%emt 0:00:06]} 8. Nf3 {[%emt 0:01:45]} Qa5 {[%emt 0:00:33]} 9. Bd2 {[%emt 0:00:13]} Bxa6 $14 {[%emt 0:00:05]} 10. Be2 {[%emt 0:00:20]} e6 {[%emt 0:05:05]} 11. O-O {[%emt 0:05:55]} Bxe2 {[%emt 0:02:03]} 12. Qxe2 {[%emt 0:00:10]} Qa6 {[%emt 0:00:57]} 13. Qd1 {[%emt 0:00:57]} exd5 {[%emt 0:06:26]} 14. e5 {[%emt 0:01:36]} Ne4 {[%emt 0:01:30]} 15. Nxd5 {[%emt 0:00:13]} Nxd2 {[%emt 0:00:58]} 16. Qxd2 {[%emt 0:01:25]} Ra7 {[%emt 0:05:20]} 17. Rfe1 {[%emt 0:16:52]} Qe6 {[%emt 0:11:04]} 18. h3 {[%emt 0:29:07]} Kh8 {[%emt 0:06:57]} 19. Ng5 {[%emt 0:01:45]} Qc6 {[%emt 0:04:54]} 20. Ne7 {[%emt 0:07:20]} Qb7 {[%emt 0:02:31]} 21. Qf4 {[%emt 0:00:32]} h6 {[%emt 0:05:46]} 22. Nxf7+ {[%emt 0:01:20]} Kh7 {[%emt 0:00:18]} 23. Qg4 {[%emt 0:01:00]} Qa6 {[%emt 0:01:12]} 24. e6 {[%emt 0:02:26]} Qd3 {[%emt 0:00:52]} 25. Re4 {[%emt 0:00:15]} 1-0

[Event "NOR-ch Various 2019"]
[Site "Larvik"]
[Date "2019.07.13"]
[Round "9.33"]
[White "Lund, Gunnar"]
[Black "Machlik, Monika"]
[Result "1/2-1/2"]
[ECO "D00"]
[WhiteElo "2285"]
[BlackElo "2083"]
[Annotator "ChessBase"]
[PlyCount "95"]
[EventDate "2019.07.06"]
[EventType "swiss"]
[EventCountry "NOR"]
[SourceTitle "playchess.com"]
[Source "ChessBase"]
[SourceQuality "1"]
[TimeControl "40/5400+30:1800+30"]

1. d4 {[%emt 0:00:00]} d5 {[%emt 0:00:00]} 2. Bf4 {[%emt 0:00:38]} Nf6 {[%emt 0:00:00]} 3. Nc3 {[%emt 0:00:08]} e6 {[%emt 0:06:15]} 4. Nb5 {[%emt 0:01:49]} Na6 {[%emt 0:03:42]} 5. a3 {[%emt 0:00:07]} c6 {[%emt 0:05:09]} 6. Nc3 {[%emt 0:00:06]} Bd6 {[%emt 0:00:22]} 7. e3 {[%emt 0:00:06]} Bxf4 {[%emt 0:08:06]} 8. exf4 {[%emt 0:00:08]} b6 {[%emt 0:01:11]} 9. Nf3 {[%emt 0:04:34]} Nb8 {[%emt 0:03:35]} 10. Ne5 {[%emt 0:02:01]} Qc7 {[%emt 0:01:04]} 11. g4 {[%emt 0:03:36]} Ba6 {[%emt 0:04:25]} 12. g5 {[%emt 0:02:08]} Nfd7 {[%emt 0:03:30]} 13. Bxa6 {[%emt 0:07:06]} Nxa6 {[%emt 0:00:08]} 14. Qe2 {[%emt 0:00:07]} Nxe5 {[%emt 0:07:59]} 15. fxe5 {[%emt 0:00:22]} Qb7 {[%emt 0:00:54]} 16. O-O-O {[%emt 0:01:36]} O-O-O {[%emt 0:06:42]} 17. h4 {[%emt 0:01:36]} h6 {[%emt 0:04:24]} 18. Qg4 {[%emt 0:05:31]} h5 {[%emt 0:03:54]} 19. Qg3 {[%emt 0:02:51]} g6 {[%emt 0:00:29]} 20. Rh3 {[%emt 0:02:22]} Nc7 {[%emt 0:01:03]} 21. Qf4 {[%emt 0:04:10]} Ne8 {[%emt 0:01:21]} 22. Rf3 {[%emt 0:00:18]} Rf8 {[%emt 0:02:51]} 23. Ne2 {[%emt 0:00:19]} Ng7 {[%emt 0:02:36]} 24. Ng3 {[%emt 0:00:18]} Rd7 {[%emt 0:06:32]} 25. Kd2 {[%emt 0:06:05]} Kb8 {[%emt 0:07:22]} 26. Ke1 {[%emt 0:02:54]} Ka8 {[%emt 0:00:39]} 27. Kf1 {[%emt 0:00:32]} Nf5 {[%emt 0:01:59]} 28. Nxf5 {[%emt 0:00:30]} exf5 {[%emt 0:00:26]} 29. Kg2 {[%emt 0:00:43]} Re8 {[%emt 0:00:46]} 30. Rc1 {[%emt 0:02:51]} c5 {[%emt 0:05:24]} 31. c3 {[%emt 0:03:25]} Rc7 {[%emt 0:04:53]} 32. Rd3 {[%emt 0:00:52]} c4 {[%emt 0:01:31]} 33. Re3 {[%emt 0:00:47]} Re6 {[%emt 0:00:11]} 34. Qf3 {[%emt 0:00:42]} Kb8 {[%emt 0:02:08]} 35. Rb1 {[%emt 0:00:27]} Kc8 {[%emt 0:04:23]} 36. b3 {[%emt 0:01:28]} a6 {[%emt 0:00:21]} 37. Re2 {[%emt 0:01:49]} Kd7 {[%emt 0:00:54]} 38. Reb2 {[%emt 0:00:56]} Ke7 {[%emt 0:00:57]} 39. bxc4 {[%emt 0:03:22]} Rxc4 {[%emt 0:00:20]} 40. Rb4 {[%emt 0:00:09]} Rxb4 {[%emt 0:00:21]} 41. Rxb4 {[%emt 0:30:28]} Qd7 {[%emt 0:03:39]} 42. Qe2 {[%emt 0:00:00]} b5 {[%emt 0:03:10]} 43. Qb2 {[%emt 0:00:00]} Rb6 {[%emt 0:03:00]} 44. a4 {[%emt 0:00:00]} Qc6 {[%emt 0:06:25]} 45. Qa3 {[%emt 0:00:00]} Ke8 {[%emt 0:01:03]} 46. axb5 {[%emt 0:00:00]} Rxb5 {[%emt 0:02:26]} 47. Ra4 {[%emt 0:00:00]} Rb6 {[%emt 0:00:38]} 48. Ra5 {[%emt 0:00:00]} 1/2-1/2

[Event "NOR-ch Various 2019"]
[Site "Larvik"]
[Date "2019.07.13"]
[Round "9.34"]
[White "Laverton, Christian"]
[Black "Abdrlauf, Elham"]
[Result "1/2-1/2"]
[ECO "A84"]
[WhiteElo "2115"]
[BlackElo "2235"]
[Annotator "ChessBase"]
[PlyCount "155"]
[EventDate "2019.07.06"]
[EventType "swiss"]
[EventCountry "NOR"]
[SourceTitle "playchess.com"]
[Source "ChessBase"]
[SourceQuality "1"]
[TimeControl "40/5400+30:1800+30"]

1. d4 {[%emt 0:00:00]} d5 {[%emt 0:00:00]} 2. c4 {[%emt 0:00:00]} c6 {[%emt 0:00:00]} 3. Nf3 {[%emt 0:00:00]} e6 {[%emt 0:00:00]} 4. e3 {[%emt 0:00:06]} f5 {[%emt 0:00:00]} 5. Bd3 {[%emt 0:01:25]} Nf6 {[%emt 0:00:00]} 6. O-O {[%emt 0:00:15]} Bd6 {[%emt 0:00:00]} 7. b3 {[%emt 0:00:29]} O-O {[%emt 0:00:05]} 8. Ba3 {[%emt 0:01:03]} Bxa3 {[%emt 0:08:34]} 9. Nxa3 {[%emt 0:00:04]} Qe7 {[%emt 0:06:10]} 10. Nb1 {[%emt 0:03:14]} Nbd7 {[%emt 0:11:13]} 11. Qc2 {[%emt 0:05:06]} Ne4 {[%emt 0:04:18]} 12. Ne1 {[%emt 0:03:44]} b6 {[%emt 0:07:42]} 13. f3 {[%emt 0:03:44]} Nd6 {[%emt 0:03:23]} 14. Nc3 {[%emt 0:06:57]} Bb7 {[%emt 0:01:48]} 15. f4 {[%emt 0:12:44]} dxc4 {[%emt 0:03:29]} 16. bxc4 {[%emt 0:02:49]} c5 {[%emt 0:01:04]} 17. Nf3 {[%emt 0:04:40]} Rac8 {[%emt 0:02:30]} 18. Qb3 {[%emt 0:07:16]} cxd4 {[%emt 0:00:35]} 19. exd4 {[%emt 0:01:31]} Bxf3 {[%emt 0:01:45]} 20. Rxf3 {[%emt 0:00:18]} Qf6 {[%emt 0:00:01]} 21. Ne2 {[%emt 0:02:30]} Nb8 {[%emt 0:03:27]} 22. Rc1 {[%emt 0:06:11]} Nc6 {[%emt 0:01:19]} 23. Qc3 {[%emt 0:01:20]} Rfd8 {[%emt 0:04:29]} 24. Re3 {[%emt 0:06:35]} Kf7 {[%emt 0:20:17]} 25. c5 {[%emt 0:07:12]} bxc5 {[%emt 0:02:21]} 26. dxc5 {[%emt 0:00:24]} Qxc3 {[%emt 0:00:53]} 27. Nxc3 {[%emt 0:02:01]} Nb4 {[%emt 0:08:52]} 28. cxd6 {[%emt 0:08:56]} Nd5 {[%emt 0:00:02]} 29. Ba6 {[%emt 0:03:17]} Nxe3 {[%emt 0:00:17]} 30. Bxc8 {[%emt 0:00:53]} Rxc8 {[%emt 0:00:02]} 31. d7 {[%emt 0:05:12]} Rd8 {[%emt 0:00:07]} 32. Re1 {[%emt 0:00:37]} Nc4 {[%emt 0:01:24]} 33. Rd1 {[%emt 0:00:28]} Nb6 {[%emt 0:01:57]} 34. Nb5 {[%emt 0:00:28]} a5 {[%emt 0:04:38]} 35. Nd6+ {[%emt 0:01:17]} Ke7 {[%emt 0:00:24]} 36. Nb7 {[%emt 0:00:12]} Rxd7 {[%emt 0:00:01]} 37. Rxd7+ {[%emt 0:00:14]} Kxd7 {[%emt 0:00:03]} 38. Nxa5 {[%emt 0:00:11]} Nd5 {[%emt 0:00:17]} 39. g3 {[%emt 0:00:51]} Nc3 {[%emt 0:00:14]} 40. a3 {[%emt 0:00:26]} Nb5 {[%emt 0:00:08]} 41. Nc4 {[%emt 0:31:13]} Kc6 {[%emt 0:30:04]} 42. Ne5+ {[%emt 0:01:22]} Kb6 {[%emt 0:02:05]} 43. Nd7+ {[%emt 0:01:40]} Kc6 {[%emt 0:00:37]} 44. Nf8 {[%emt 0:00:11]} Nxa3 {[%emt 0:01:39]} 45. Nxe6 {[%emt 0:00:14]} g6 {[%emt 0:00:01]} 46. Nf8 {[%emt 0:00:21]} Kd6 {[%emt 0:00:02]} 47. Nxh7 {[%emt 0:01:04]} Ke7 {[%emt 0:00:04]} 48. Kf2 {[%emt 0:01:05]} Nc4 {[%emt 0:00:20]} 49. Ng5 {[%emt 0:00:28]} Kf6 {[%emt 0:00:12]} 50. h3 {[%emt 0:00:36]} Nb6 {[%emt 0:00:24]} 51. Nf3 {[%emt 0:00:50]} Nc4 {[%emt 0:00:12]} 52. g4 {[%emt 0:00:33]} fxg4 {[%emt 0:00:04]} 53. hxg4 {[%emt 0:00:14]} Ke6 {[%emt 0:00:09]} 54. Ng5+ {[%emt 0:00:44]} Kf6 {[%emt 0:00:14]} 55. Kg3 {[%emt 0:01:11]} Nd2 {[%emt 0:00:14]} 56. Kf2 {[%emt 0:00:00]} Nc4 {[%emt 0:00:00]} 57. Ne4+ {[%emt 0:00:00]} Ke6 {[%emt 0:00:00]} 58. Kf3 {[%emt 0:00:00]} Nb6 {[%emt 0:00:00]} 59. Ng5+ {[%emt 0:00:00]} Kf6 {[%emt 0:00:00]} 60. Ke4 {[%emt 0:00:00]} Nc4 {[%emt 0:00:00]} 61. Nf3 {[%emt 0:00:00]} Ke6 {[%emt 0:00:00]} 62. Nd4+ {[%emt 0:00:00]} Kf6 {[%emt 0:00:00]} 63. g5+ {[%emt 0:00:00]} Kf7 {[%emt 0:00:00]} 64. Nc6 {[%emt 0:00:00]} Ke6 {[%emt 0:00:00]} 65. Ne5 {[%emt 0:00:00]} Nd6+ {[%emt 0:00:00]} 66. Kf3 {[%emt 0:00:00]} Kf5 {[%emt 0:00:00]} 67. Nc6 {[%emt 0:00:00]} Ke6 {[%emt 0:00:00]} 68. Kg4 {[%emt 0:00:00]} Nf5 {[%emt 0:00:00]} 69. Ne5 {[%emt 0:00:00]} Ne7 {[%emt 0:00:00]} 70. Nxg6 {[%emt 0:00:00]} Nxg6 {[%emt 0:00:00]} 71. f5+ {[%emt 0:00:00]} Kf7 {[%emt 0:00:00]} 72. Kh5 {[%emt 0:00:00]} Kg7 {[%emt 0:00:00]} 73. fxg6 {[%emt 0:00:00]} Kg8 {[%emt 0:00:00]} 74. g7 {[%emt 0:00:00]} Kxg7 {[%emt 0:00:00]} 75. g6 {[%emt 0:00:00]} Kg8 {[%emt 0:00:00]} 76. Kh6 {[%emt 0:00:00]} Kh8 {[%emt 0:00:00]} 77. g7+ {[%emt 0:00:00]} Kg8 {[%emt 0:00:00]} 78. Kg6 {[%emt 0:00:11]} 1/2-1/2